bitfinex/quotes_BTCUSD_20250525
["timestamp","ask_amount","ask_price","bid_price","bid_amount"]
[1748166582632,0.04300513,106790.0,106780.0,1.8208824]
[1748166583087,0.00102491,106790.0,106780.0,1.83457374]
[1748166586586,0.00102491,106790.0,106780.0,0.67705134]
[1748166586800,0.01662491,106790.0,106780.0,0.67705134]
[1748166587804,0.00102491,106790.0,106780.0,0.92788934]
[1748166588428,0.00102491,106790.0,106780.0,0.914198]
[1748166591242,0.00102491,106790.0,106780.0,0.886]
[1748166591686,0.00102491,106790.0,106780.0,0.73652]
[1748166591893,0.00102491,106790.0,106780.0,0.67709727]
[1748166593947,0.00102491,106790.0,106780.0,0.82439227]
[1748166596125,0.00102491,106790.0,106780.0,1.45522167]
[1748166600556,0.00102491,106790.0,106780.0,0.83979227]
[1748166601329,0.00102491,106790.0,106780.0,0.82439227]
[1748166602195,0.00102491,106790.0,106780.0,0.79280327]
[1748166604528,0.00102491,106790.0,106780.0,0.77736727]
[1748166605499,0.00102491,106790.0,106780.0,0.80896727]
[1748166606727,0.00102491,106790.0,106780.0,1.40769667]
[1748166608129,0.0156,106810.0,106780.0,1.03609667]
[1748166608396,0.10524013,106810.0,106790.0,0.5063467]
[1748166608570,0.412,106800.0,106790.0,0.0316]
[1748166608806,0.412,106800.0,106790.0,0.65582676]
[1748166609020,0.412,106800.0,106790.0,0.653486]
[1748166609573,0.45398022,106800.0,106790.0,1.34176096]
[1748166609788,0.42094137,106800.0,106790.0,1.35730181]
[1748166610004,0.42094137,106800.0,106790.0,1.38326112]
[1748166610217,0.42094137,106800.0,106790.0,1.38426112]
[1748166610427,0.42094137,106800.0,106790.0,1.41229712]
[1748166611091,0.42094137,106800.0,106790.0,1.38633781]
[1748166611298,0.412,106800.0,106790.0,1.38633781]
[1748166611750,0.412,106800.0,106790.0,1.72633781]
[1748166614169,0.04207479,106810.0,106790.0,1.72633781]
[1748166614379,0.04207479,106810.0,106800.0,5.91474281]
[1748166615222,9.457e-05,106810.0,106800.0,5.91474281]
[1748166615614,0.04207479,106810.0,106800.0,5.91474281]
[1748166615755,9.457e-05,106810.0,106800.0,5.91474281]
[1748166615960,0.00109457,106810.0,106800.0,5.91474281]
[1748166616388,0.00109457,106810.0,106800.0,6.51347221]
[1748166617031,0.00209457,106810.0,106800.0,6.51347221]
[1748166617337,0.00209457,106810.0,106800.0,5.31601341]
[1748166617543,0.00109457,106810.0,106800.0,4.04161096]
[1748166617754,9.457e-05,106810.0,106800.0,4.04161096]
[1748166617960,0.00109457,106810.0,106800.0,3.72357096]
[1748166618168,0.00209457,106810.0,106800.0,3.45731196]
[1748166619438,0.00209457,106810.0,106800.0,4.07058221]
[1748166619826,0.00209457,106810.0,106800.0,4.07204321]
[1748166622762,0.00209457,106810.0,106800.0,4.10007421]
[1748166628032,0.00209457,106810.0,106800.0,3.95063421]
[1748166628169,0.00209457,106810.0,106800.0,4.10007421]
[1748166632572,0.00209457,106810.0,106800.0,2.90261541]
[1748166632778,0.00209457,106810.0,106800.0,4.10007421]
[1748166633209,0.00209457,106810.0,106800.0,3.50134481]
[1748166633602,0.00209457,106810.0,106800.0,4.10007421]
[1748166633814,0.00209457,106810.0,106800.0,2.57961541]
[1748166634027,0.00209457,106810.0,106800.0,3.50130481]
[1748166636650,0.00209457,106810.0,106800.0,3.35186481]
[1748166636787,0.00209457,106810.0,106800.0,3.50130481]
[1748166638722,0.00209457,106810.0,106800.0,3.35186481]
[1748166638930,0.00209457,106810.0,106800.0,3.83750481]
[1748166639703,0.00209457,106810.0,106800.0,3.65802396]
[1748166639885,0.00209457,106810.0,106800.0,3.76423296]
[1748166640311,0.00209457,106810.0,106800.0,3.79573296]
[1748166640751,0.41409457,106810.0,106800.0,3.79573296]
[1748166645468,0.41409457,106810.0,106800.0,3.64629296]
[1748166645773,0.41409457,106810.0,106800.0,3.79573296]
[1748166646215,0.41409457,106810.0,106800.0,3.77943296]
[1748166646398,0.41409457,106810.0,106800.0,3.76423296]
[1748166647381,0.41409457,106810.0,106800.0,3.78073296]
[1748166647636,0.41409457,106810.0,106800.0,3.79593296]
[1748166650306,0.41409457,106810.0,106800.0,4.40920321]
[1748166651780,0.41409457,106810.0,106800.0,3.81047381]
[1748166654556,0.41409457,106810.0,106800.0,4.40920321]
[1748166658492,0.00209457,106810.0,106800.0,4.40920321]
[1748166660456,0.412,106820.0,106810.0,0.04734085]
[1748166660663,0.512,106830.0,106810.0,0.72155584]
[1748166660883,0.512,106830.0,106820.0,0.86865581]
[1748166661078,0.512,106830.0,106820.0,5.91865581]
[1748166662669,0.512,106830.0,106820.0,5.92265581]
[1748166662910,0.512,106830.0,106820.0,5.77321581]
[1748166663100,0.512,106830.0,106820.0,5.90625581]
[1748166663303,0.5431,106830.0,106820.0,5.90625581]
[1748166663528,0.5431,106830.0,106820.0,6.07949581]
[1748166663731,0.512,106830.0,106820.0,6.43589581]
[1748166665618,0.512,106830.0,106820.0,6.45089581]
[1748166665842,0.50140092,106830.0,106820.0,6.45089581]
[1748166666066,0.49540092,106830.0,106820.0,6.47741448]
[1748166666276,0.49540092,106830.0,106820.0,6.45089581]
[1748166667550,0.05853022,106850.0,106840.0,0.5987294]
[1748166667766,0.05868157,106850.0,106840.0,5.6571084]
[1748166667969,0.05868157,106850.0,106840.0,5.5744664]
[1748166669040,0.05968157,106850.0,106840.0,5.5744664]
[1748166669502,0.05968157,106850.0,106840.0,5.66401196]
[1748166669718,0.04428157,106850.0,106840.0,5.66401196]
[1748166670136,0.04528157,106850.0,106840.0,5.66401196]
[1748166670386,0.04528157,106850.0,106840.0,5.67782256]
[1748166670807,0.04428157,106850.0,106840.0,6.03292256]
[1748166671029,0.04328157,106850.0,106840.0,6.01782256]
[1748166671237,0.04328157,106850.0,106840.0,6.02182256]
[1748166671415,0.04328157,106850.0,106840.0,4.57356456]
[1748166672242,0.04328157,106850.0,106840.0,4.58866456]
[1748166672686,0.00121456,106850.0,106840.0,4.60416456]
[1748166672938,0.00121456,106850.0,106840.0,5.21743481]
[1748166673170,0.00121456,106850.0,106840.0,5.25497631]
[1748166673384,0.00121456,106850.0,106840.0,5.22845764]
[1748166673832,0.00121456,106850.0,106840.0,5.25497631]
[1748166674526,0.00121456,106850.0,106840.0,5.22845764]
[1748166677635,0.00121456,106850.0,106840.0,4.03099884]
[1748166677868,0.00121456,106850.0,106840.0,5.07901764]
[1748166678144,0.01681456,106850.0,106840.0,4.75734739]
[1748166678359,0.03331456,106850.0,106840.0,4.75734739]
[1748166678587,0.07529478,106850.0,106840.0,1.83731643]
[1748166678808,0.07529478,106850.0,106840.0,2.03315843]
[1748166679171,0.07529478,106850.0,106840.0,2.21185243]
[1748166679368,0.07529478,106850.0,106840.0,2.11106743]
[1748166680045,0.07529478,106850.0,106840.0,1.69986743]
[1748166681114,0.07529478,106850.0,106840.0,1.06369443]
[1748166681321,0.07529478,106850.0,106840.0,1.21309443]
[1748166683737,0.07529478,106850.0,106840.0,1.81182383]
[1748166684113,0.07529478,106850.0,106840.0,1.21309443]
[1748166686151,0.07529478,106850.0,106840.0,1.54921443]
[1748166689744,0.00121456,106850.0,106840.0,2.85241879]
[1748166689957,0.00121456,106850.0,106840.0,2.90947831]
[1748166693292,0.00121456,106850.0,106840.0,2.88295964]
[1748166693484,0.00121456,106850.0,106840.0,2.28423024]
[1748166694675,0.00121456,106850.0,106840.0,1.68550084]
[1748166694885,0.00121456,106850.0,106840.0,2.28423024]
[1748166695928,0.00121456,106850.0,106840.0,1.91524939]
[1748166696142,0.07509478,106850.0,106840.0,0.88697443]
[1748166696350,0.07509478,106850.0,106840.0,1.20913443]
[1748166696972,0.07509478,106850.0,106840.0,0.88697443]
[1748166697194,0.07509478,106850.0,106840.0,1.20913443]
[1748166697817,0.07509478,106850.0,106840.0,1.05977443]
[1748166698035,0.07509478,106850.0,106840.0,1.20913443]
[1748166699281,0.07509478,106850.0,106840.0,1.19532383]
[1748166700615,0.07509478,106850.0,106840.0,1.79405323]
[1748166700616,0.04319478,106850.0,106840.0,1.79405323]
[1748166701510,0.07509478,106850.0,106840.0,1.19532383]
[1748166701976,0.07509478,106850.0,106840.0,1.20905432]
[1748166702648,0.05859478,106850.0,106840.0,1.20905432]
[1748166702871,0.04319478,106850.0,106840.0,1.20905432]
[1748166704647,0.04319478,106850.0,106840.0,1.80778372]
[1748166704861,0.04319478,106850.0,106840.0,1.20905432]
[1748166708655,0.40779478,106850.0,106840.0,1.20905432]
[1748166709221,0.40779478,106850.0,106840.0,1.80778372]
[1748166709430,0.40779478,106850.0,106840.0,1.20905432]
[1748166709633,0.43919478,106850.0,106840.0,1.20909432]
[1748166712296,0.43919478,106850.0,106840.0,1.05969432]
[1748166712534,0.43919478,106850.0,106840.0,1.20909432]
[1748166715415,0.42349478,106850.0,106840.0,1.20909432]
[1748166718182,0.40779478,106850.0,106840.0,1.20909432]
[1748166719198,0.44049478,106850.0,106840.0,1.20909432]
[1748166719685,0.40779478,106850.0,106840.0,1.20909432]
[1748166720320,0.40779478,106850.0,106840.0,1.19807149]
[1748166721088,0.42339478,106850.0,106840.0,1.19807149]
[1748166721490,0.44039478,106850.0,106840.0,1.19807149]
[1748166721695,0.40779478,106850.0,106840.0,1.79680089]
[1748166722284,0.40779478,106850.0,106840.0,1.81340089]
[1748166722931,0.40779478,106850.0,106840.0,1.79680089]
[1748166724356,0.40779478,106850.0,106840.0,2.13684089]
[1748166726276,0.36581456,106850.0,106840.0,2.13684089]
[1748166726483,0.40779478,106850.0,106840.0,2.13684089]
[1748166726734,0.40779478,106850.0,106840.0,1.53811149]
[1748166726915,0.40779478,106850.0,106840.0,2.13684089]
[1748166727666,0.40779478,106850.0,106840.0,2.15254089]
[1748166729693,0.40779478,106850.0,106840.0,2.16904089]
[1748166730117,0.36581456,106850.0,106840.0,2.16904089]
[1748166730342,0.40779478,106850.0,106840.0,2.16904089]
[1748166730573,0.40779478,106850.0,106840.0,2.15254089]
[1748166732147,0.40779478,106850.0,106840.0,2.16864089]
[1748166732367,0.40779478,106850.0,106840.0,1.56991149]
[1748166732587,0.40779478,106850.0,106840.0,2.15254089]
[1748166738297,0.40779478,106850.0,106840.0,2.25818645]
[1748166738827,0.36581456,106850.0,106840.0,2.25818645]
[1748166739130,0.36581456,106850.0,106840.0,2.89797537]
[1748166741273,0.36581456,106850.0,106840.0,2.91287124]
[1748166741889,0.36581456,106850.0,106840.0,2.91087124]
[1748166742094,0.36581456,106850.0,106840.0,2.91387124]
[1748166742950,0.36581456,106850.0,106840.0,2.88535257]
[1748166743167,0.36581456,106850.0,106840.0,2.88835257]
[1748166743781,0.00121456,106850.0,106840.0,2.88835257]
[1748166744449,0.00121456,106850.0,106840.0,1.69089377]
[1748166744657,0.00121456,106850.0,106840.0,2.88835257]
[1748166745528,0.00121456,106850.0,106840.0,2.28958102]
[1748166745763,0.00121456,106850.0,106840.0,2.28914102]
[1748166746227,0.00121456,106850.0,106840.0,2.28905664]
[1748166746441,0.00121456,106850.0,106840.0,2.27416077]
[1748166746702,0.00121456,106850.0,106840.0,2.27407639]
[1748166747119,0.00121456,106850.0,106840.0,2.27399201]
[1748166747358,0.00121456,106850.0,106840.0,1.93769116]
[1748166747581,0.07629478,106850.0,106840.0,0.84128349]
[1748166748233,0.03431456,106850.0,106840.0,1.18128349]
[1748166749363,0.03431456,106850.0,106840.0,0.84128349]
[1748166751113,0.03431456,106850.0,106840.0,0.84119911]
[1748166751549,0.00121456,106850.0,106840.0,1.45594441]
[1748166751849,0.04319478,106850.0,106840.0,1.47174441]
[1748166751980,0.00121456,106850.0,106840.0,1.47174441]
[1748166752183,0.04319478,106850.0,106840.0,1.47166003]
[1748166752414,0.04319478,106850.0,106840.0,1.47157689]
[1748166752630,0.00121456,106850.0,106840.0,1.47149251]
[1748166752839,0.04319478,106850.0,106840.0,1.47149251]
[1748166753586,0.04319478,106850.0,106840.0,0.84090311]
[1748166759556,0.04319478,106850.0,106840.0,0.51910311]
[1748166759724,0.04319478,106850.0,106840.0,0.84094311]
[1748166761946,0.04319478,106850.0,106840.0,0.85694311]
[1748166762513,0.00121456,106850.0,106840.0,0.96248867]
[1748166762770,0.04319478,106850.0,106840.0,0.96248867]
[1748166763515,0.04319478,106850.0,106840.0,0.94648867]
[1748166763715,0.04319478,106850.0,106840.0,0.93048867]
[1748166764128,0.04319478,106850.0,106840.0,0.51910311]
[1748166764342,0.04319478,106850.0,106840.0,0.84086311]
[1748166764573,0.04319478,106850.0,106840.0,0.87356311]
[1748166765421,0.04319478,106850.0,106840.0,0.85696311]
[1748166767920,0.04319478,106850.0,106840.0,1.18086311]
[1748166768351,0.00121456,106850.0,106840.0,1.30310867]
[1748166768780,0.04319478,106850.0,106840.0,1.30310867]
[1748166771476,0.00121456,106850.0,106840.0,1.30310867]
[1748166771659,0.04319478,106850.0,106840.0,1.30310867]
[1748166772765,0.04319478,106850.0,106840.0,1.28650867]
[1748166774150,0.04319478,106850.0,106840.0,1.27040867]
[1748166781035,0.07579478,106850.0,106840.0,1.03146311]
[1748166781261,0.07579478,106850.0,106840.0,1.18086311]
[1748166781678,0.03381456,106850.0,106840.0,1.018153]
[1748166781878,0.03615921,106850.0,106840.0,1.167553]
[1748166782338,0.03381456,106850.0,106840.0,1.167553]
[1748166790055,0.03381456,106850.0,106840.0,0.845793]
[1748166790303,0.03381456,106850.0,106840.0,1.167593]
[1748166794555,0.03381456,106850.0,106840.0,1.018193]
[1748166794834,0.03381456,106850.0,106840.0,0.85436]
[1748166795085,0.03381456,106850.0,106840.0,1.00376]
[1748166796451,0.03381456,106850.0,106840.0,0.85436]
[1748166796653,0.03381456,106850.0,106840.0,1.00376]
[1748166796880,0.12336012,106850.0,106840.0,0.66376]
[1748166797346,0.12336012,106850.0,106840.0,1.00376]
[1748166798094,0.12336012,106850.0,106840.0,0.85436]
[1748166798307,0.12336012,106850.0,106840.0,0.34212]
[1748166798521,0.12570477,106850.0,106840.0,0.66376]
[1748166799585,0.12570477,106850.0,106840.0,0.66076]
[1748166799804,0.12570477,106850.0,106840.0,0.65976]
[1748166800025,0.12570477,106850.0,106840.0,0.66076]
[1748166802003,0.12570477,106850.0,106840.0,0.51136]
[1748166802216,0.12570477,106850.0,106840.0,0.66076]
[1748166806862,0.72358142,106850.0,106840.0,0.33912]
[1748166807067,0.72123677,106850.0,106840.0,0.5114]
[1748166807287,0.79548078,106850.0,106840.0,0.6608]
[1748166807502,0.73577762,106850.0,106840.0,0.6608]
[1748166807962,0.73577762,106850.0,106840.0,0.6598]
[1748166808160,0.12336012,106850.0,106840.0,0.6598]
[1748166808364,0.12570477,106850.0,106840.0,0.6598]
[1748166808680,0.12570477,106850.0,106840.0,0.6578]
[1748166808902,0.13785249,106850.0,106840.0,0.6578]
[1748166809129,0.10290784,106850.0,106840.0,0.6578]
[1748166809325,0.10525249,106850.0,106840.0,0.6578]
[1748166809726,0.10725249,106850.0,106840.0,0.6578]
[1748166809887,0.09610477,106850.0,106840.0,0.6578]
[1748166810082,0.09376012,106850.0,106840.0,0.6578]
[1748166811364,0.00421456,106850.0,106840.0,0.6578]
[1748166811576,0.00421456,106850.0,106840.0,0.6737]
[1748166813074,0.00421456,106850.0,106840.0,0.6903]
[1748166813622,0.00421456,106850.0,106840.0,1.0303]
[1748166818252,0.00421456,106850.0,106840.0,2.688519]
[1748166818450,0.00421456,106850.0,106840.0,2.624559]
[1748166819310,0.00421456,106850.0,106840.0,1.549352]
[1748166819522,0.00421456,106850.0,106840.0,1.488514]
[1748166819936,0.00421456,106850.0,106840.0,1.505214]
[1748166820993,0.00421456,106850.0,106840.0,1.51927124]
[1748166822171,0.04619478,106850.0,106840.0,1.51927124]
[1748166822784,0.00421456,106850.0,106840.0,1.51927124]
[1748166823218,0.00121456,106850.0,106840.0,1.51927124]
[1748166824261,0.00121456,106850.0,106840.0,1.52127124]
[1748166826004,0.00121456,106850.0,106840.0,1.52227124]
[1748166826797,0.00121456,106850.0,106840.0,1.37287124]
[1748166827022,0.00121456,106850.0,106840.0,1.52227124]
[1748166828038,0.04319478,106850.0,106840.0,1.52227124]
[1748166828217,0.00121456,106850.0,106840.0,1.52227124]
[1748166828620,0.20121456,106850.0,106840.0,1.52227124]
[1748166833031,0.24319478,106850.0,106840.0,1.52227124]
[1748166852638,0.20121456,106850.0,106840.0,1.63930073]
[1748166852847,0.20121456,106850.0,106840.0,1.65384158]
[1748166853523,0.20121456,106850.0,106840.0,1.66873745]
[1748166855056,0.20121456,106850.0,106840.0,1.65384158]
[1748166856386,0.18761456,106850.0,106840.0,1.62635765]
[1748166856592,0.15026456,106850.0,106840.0,1.62635765]
[1748166858489,0.10358794,106850.0,106840.0,1.62635765]
[1748166858687,0.05691132,106850.0,106840.0,1.62635765]
[1748166859107,0.0102347,106850.0,106840.0,1.62635765]
[1748166859331,1e-08,106850.0,106840.0,1.62635765]
[1748166861142,1e-08,106850.0,106840.0,1.65437965]
[1748166861986,1e-08,106850.0,106840.0,1.65337965]
[1748166862227,1e-08,106850.0,106840.0,1.65137965]
[1748166862430,1e-08,106850.0,106840.0,1.65337965]
[1748166862638,1e-08,106850.0,106840.0,1.65537965]
[1748166866725,1e-08,106850.0,106840.0,1.50597965]
[1748166866930,1e-08,106850.0,106840.0,1.62731765]
[1748166868839,1e-08,106850.0,106840.0,1.62671765]
[1748166870479,1e-08,106850.0,106840.0,1.4628168]
[1748166870693,1e-08,106850.0,106840.0,1.5795768]
[1748166872072,0.04198023,106850.0,106840.0,1.5795768]
[1748166873247,0.04198023,106850.0,106840.0,1.34067124]
[1748166873248,0.43808023,106850.0,106840.0,1.34067124]
[1748166873467,0.43808023,106850.0,106840.0,1.49003124]
[1748166875126,0.39610001,106850.0,106840.0,1.49003124]
[1748166876345,0.38020001,106850.0,106840.0,1.49003124]
[1748166876701,0.36460001,106850.0,106840.0,1.49003124]
[1748166877247,0.38020001,106850.0,106840.0,1.49003124]
[1748166877454,0.36460001,106850.0,106840.0,1.49003124]
[1748166879090,0.36460001,106850.0,106840.0,1.50583124]
[1748166879340,0.36460001,106850.0,106840.0,1.5953768]
[1748166879538,0.36460001,106850.0,106840.0,1.6113768]
[1748166879957,0.40658023,106850.0,106840.0,1.6113768]
[1748166880158,1e-08,106850.0,106840.0,1.63886073]
[1748166880852,0.04198023,106850.0,106840.0,1.6113768]
[1748166882654,0.04198023,106850.0,106840.0,1.5953768]
[1748166883270,0.04198023,106850.0,106840.0,1.6113768]
[1748166884357,1e-08,106850.0,106840.0,1.6113768]
[1748166884771,0.04198023,106850.0,106840.0,1.6113768]
[1748166885001,1e-08,106850.0,106840.0,1.6113768]
[1748166885214,0.04198023,106850.0,106840.0,1.6113768]
[1748166885557,1e-08,106850.0,106840.0,1.6113768]
[1748166885804,0.04198023,106850.0,106840.0,1.6113768]
[1748166886623,1e-08,106850.0,106840.0,1.6113768]
[1748166886831,0.04198022,106860.0,106850.0,0.3723]
[1748166887032,0.04198022,106860.0,106850.0,5.66091056]
[1748166888716,0.04198022,106860.0,106850.0,5.66291056]
[1748166892515,0.09124157,106870.0,106850.0,5.66291056]
[1748166892702,0.04198022,106860.0,106850.0,0.61320556]
[1748166892882,0.04198022,106860.0,106850.0,5.66291056]
[1748166893283,0.04198022,106860.0,106850.0,5.66091056]
[1748166893469,0.04051922,106860.0,106850.0,5.66091056]
[1748166894665,0.04051922,106860.0,106850.0,5.66191056]
[1748166894842,0.04051922,106860.0,106850.0,5.66291056]
[1748166895024,0.04051922,106860.0,106850.0,5.66191056]
[1748166895220,0.04051922,106860.0,106850.0,5.66091056]
[1748166895434,0.04051922,106860.0,106850.0,5.66291056]
[1748166897253,0.05664695,106870.0,106850.0,5.66291056]
[1748166897452,0.01612773,106870.0,106860.0,4.036979]
[1748166897668,0.01612773,106870.0,106860.0,3.88938]
[1748166897905,0.01612773,106870.0,106860.0,3.71788]
[1748166898442,0.03262773,106870.0,106860.0,3.71788]
[1748166898857,0.03262773,106870.0,106860.0,3.682535]
[1748166899496,0.05764695,106870.0,106860.0,3.629917]
[1748166899877,0.01712773,106870.0,106860.0,3.629917]
[1748166900281,0.05764695,106870.0,106860.0,3.629917]
[1748166900789,0.01712773,106870.0,106860.0,3.629917]
[1748166901623,0.05764695,106870.0,106860.0,3.629917]
[1748166902848,0.01712773,106870.0,106860.0,3.629917]
[1748166904494,0.01712773,106870.0,106860.0,3.965957]
[1748166907050,0.05764695,106870.0,106860.0,3.965957]
[1748166907265,0.01712773,106870.0,106860.0,4.115317]
[1748166907736,0.01712773,106870.0,106860.0,4.131717]
[1748166908142,0.01712773,106870.0,106860.0,4.115317]
[1748166908588,0.05764695,106870.0,106860.0,4.115317]
[1748166909003,0.01712773,106870.0,106860.0,4.115317]
[1748166910502,0.01712773,106870.0,106860.0,3.347742]
[1748166911990,0.03302773,106870.0,106860.0,3.347742]
[1748166912382,0.04942773,106870.0,106860.0,3.347742]
[1748166912571,0.03302773,106870.0,106860.0,3.347742]
[1748166912781,0.01712773,106870.0,106860.0,3.347742]
[1748166915976,0.01712773,106870.0,106860.0,3.364642]
[1748166916597,0.01712773,106870.0,106860.0,3.026982]
[1748166916854,0.01712773,106870.0,106860.0,3.347422]
[1748166918929,0.01712773,106870.0,106860.0,3.364322]
[1748166919643,0.01712773,106870.0,106860.0,3.347422]
[1748166921152,0.05172773,106870.0,106860.0,3.347422]
[1748166921595,0.05172773,106870.0,106860.0,2.475928]
[1748166921744,0.05172773,106870.0,106860.0,1.85669]
[1748166922394,0.01712773,106870.0,106860.0,1.85669]
[1748166922600,0.01712773,106870.0,106860.0,1.88939]
[1748166923610,0.01712773,106870.0,106860.0,1.85669]
[1748166924785,0.03442773,106870.0,106860.0,1.85669]
[1748166924992,0.03677238,106870.0,106860.0,1.85669]
[1748166925189,0.05297238,106870.0,106860.0,1.85669]
[1748166927411,0.05297238,106870.0,106860.0,1.53625]
[1748166927629,0.05297238,106870.0,106860.0,1.805274]
[1748166928398,0.05297238,106870.0,106860.0,1.738988]
[1748166929125,0.05297238,106870.0,106860.0,1.570203]
[1748166929327,0.05297238,106870.0,106860.0,1.621233]
[1748166929977,0.05297238,106870.0,106860.0,1.602271]
[1748166930600,0.05297238,106870.0,106860.0,1.215698]
[1748166930826,0.05297238,106870.0,106860.0,0.65648]
[1748166932251,0.05297238,106870.0,106860.0,1.574516]
[1748166932458,0.05297238,106870.0,106860.0,1.558123]
[1748166932665,0.05062773,106870.0,106860.0,1.558123]
[1748166935590,0.04938788,106870.0,106860.0,1.558123]
[1748166936366,0.04938788,106870.0,106860.0,1.35939]
[1748166936714,0.04938788,106870.0,106860.0,0.872012]
[1748166937382,0.04938788,106870.0,106860.0,0.722652]
[1748166937587,0.04938788,106870.0,106860.0,0.823985]
[1748166938381,0.04938788,106870.0,106860.0,0.50712]
[1748166938594,0.04938788,106870.0,106860.0,0.65648]
[1748166941807,0.05173253,106870.0,106860.0,0.65648]
[1748166942780,0.04938788,106870.0,106860.0,0.65648]
[1748166947382,0.04938788,106870.0,106860.0,0.33604]
[1748166947613,0.04938788,106870.0,106860.0,0.65612]
[1748166950265,0.04938788,106870.0,106860.0,0.50676]
[1748166950471,0.13893344,106870.0,106860.0,0.65612]
[1748166950874,0.14127809,106870.0,106860.0,0.65612]
[1748166956895,0.10777809,106870.0,106860.0,0.66613376]
[1748166957505,0.14097809,106870.0,106860.0,0.66613376]
[1748166960615,0.14097809,106870.0,106860.0,0.34605376]
[1748166960857,0.14097809,106870.0,106860.0,0.66617376]
[1748166961402,0.14097809,106870.0,106860.0,0.50676]
[1748166961600,0.72778832,106870.0,106860.0,0.65616]
[1748166961817,0.72544367,106870.0,106860.0,0.65616]
[1748166962352,0.73659139,106870.0,106860.0,0.65616]
[1748166962565,2.15714843,106870.0,106860.0,0.50676]
[1748166962739,1.80484843,106870.0,106860.0,0.50676]
[1748166962927,1.87802533,106870.0,106860.0,0.50676]
[1748166963131,1.86687761,106870.0,106860.0,0.50676]
[1748166963347,1.77060761,106870.0,106860.0,0.50676]
[1748166963548,1.69365848,106870.0,106860.0,0.50676]
[1748166963771,1.69165848,106870.0,106860.0,0.50676]
[1748166963970,1.69665848,106870.0,106860.0,0.50676]
[1748166964176,1.69685457,106870.0,106860.0,0.50676]
[1748166965134,1.70185457,106870.0,106860.0,0.50776]
[1748166965551,1.79137608,106870.0,106860.0,0.50776]
[1748166965723,1.15071438,106870.0,106860.0,0.50776]
[1748166965895,0.37814085,106850.0,106840.0,0.14944]
[1748166966097,1.01385883,106850.0,106840.0,0.3202]
[1748166966302,1.03393287,106850.0,106840.0,0.3202]
[1748166966905,1.03593287,106850.0,106840.0,0.3202]
[1748166967113,1.03793287,106850.0,106840.0,0.3202]
[1748166967360,1.03793287,106850.0,106840.0,0.1708]
[1748166967493,1.03793287,106850.0,106840.0,0.3202]
[1748166967694,0.1469196,106850.0,106840.0,0.3202]
[1748166967895,0.1136196,106850.0,106840.0,0.3202]
[1748166968153,0.11596425,106850.0,106840.0,0.3202]
[1748166968935,0.1048174,106850.0,106840.0,0.3202]
[1748166970718,0.09589021,106850.0,106840.0,0.3202]
[1748166975947,0.10480189,106850.0,106840.0,0.3202]
[1748166976379,0.10480189,106850.0,106840.0,0.3372]
[1748166978527,0.10480189,106850.0,106840.0,0.3202]
[1748166987682,0.10480189,106850.0,106840.0,0.32024]
[1748166991506,0.12150189,106850.0,106840.0,0.32024]
[1748166991722,0.68162277,106850.0,106840.0,0.32024]
[1748166991965,0.67927812,106850.0,106840.0,0.32024]
[1748166994154,0.67927812,106850.0,106840.0,0.3198]
[1748166995517,0.69042497,106850.0,106840.0,0.3198]
[1748166997308,0.11360409,106850.0,106840.0,0.3198]
[1748166997539,0.11594874,106850.0,106840.0,0.3198]
[1748166997985,0.11594874,106850.0,106840.0,0.3368]
[1748166998656,0.13204874,106850.0,106840.0,0.17036]
[1748166998874,0.72476962,106850.0,106840.0,0.3198]
[1748166999087,0.72242497,106850.0,106840.0,0.3198]
[1748167000219,0.72242497,106850.0,106840.0,4e-05]
[1748167000445,0.70652497,106850.0,106840.0,0.3198]
[1748167000675,0.11360409,106850.0,106840.0,0.3198]
[1748167000902,0.11360409,106850.0,106840.0,0.33360401]
[1748167001562,0.11360409,106850.0,106840.0,0.3198]
[1748167001998,0.11594874,106850.0,106840.0,0.3198]
[1748167002427,0.11360409,106850.0,106840.0,0.3198]
[1748167003512,0.11594874,106850.0,106840.0,0.3198]
[1748167003938,0.11360409,106850.0,106840.0,0.3198]
[1748167005237,0.11594874,106850.0,106840.0,0.3198]
[1748167005462,0.11594874,106850.0,106840.0,0.3357]
[1748167005882,0.11594874,106850.0,106840.0,0.3498766]
[1748167010400,0.69276962,106850.0,106840.0,0.3498766]
[1748167010613,0.69042497,106850.0,106840.0,0.3498766]
[1748167010832,0.69042497,106850.0,106840.0,0.16988]
[1748167010833,0.81327966,106850.0,106840.0,0.16988]
[1748167011044,0.82327966,106850.0,106840.0,0.16988]
[1748167011281,0.77809903,106850.0,106840.0,0.16988]
[1748167011486,0.75188144,106850.0,106840.0,0.16988]
[1748167011659,0.74988144,106850.0,106840.0,0.16988]
[1748167011880,0.75188144,106850.0,106840.0,0.16988]
[1748167012084,0.73701897,106850.0,106840.0,0.16988]
[1748167012313,0.73501897,106850.0,106840.0,0.16988]
[1748167012750,0.73301897,106850.0,106840.0,0.16988]
[1748167012978,0.79846408,106850.0,106840.0,0.16988]
[1748167013203,0.78846408,106850.0,106840.0,0.16988]
[1748167013629,0.79146408,106850.0,106840.0,0.16988]
[1748167014222,0.79346408,106850.0,106840.0,0.16988]
[1748167014428,0.80835658,106850.0,106840.0,0.16988]
[1748167015743,0.7443827,106850.0,106840.0,4e-05]
[1748167015964,0.7443827,106850.0,106840.0,0.16988]
[1748167018252,0.84390421,106850.0,106840.0,0.16988]
[1748167018693,0.7543827,106850.0,106840.0,0.16988]
[1748167020894,0.7543827,106850.0,106810.0,0.37014]
[1748167020895,0.36356,106830.0,106810.0,0.37014]
[1748167021098,0.45545021,106820.0,106810.0,0.37014]
[1748167021302,0.45310556,106820.0,106810.0,0.54002]
[1748167022136,0.45315595,106820.0,106810.0,0.69146]
[1748167022324,0.45315595,106820.0,106810.0,0.69346]
[1748167022546,0.45315595,106820.0,106810.0,0.69146]
[1748167022968,0.45315595,106820.0,106810.0,0.69346]
[1748167023344,0.45315595,106820.0,106810.0,0.69146]
[1748167023745,0.45315595,106820.0,106810.0,0.69346]
[1748167026710,0.08959595,106820.0,106810.0,0.69346]
[1748167027605,5.039e-05,106820.0,106810.0,0.69346]
[1748167033686,5.039e-05,106820.0,106810.0,2.28874]
[1748167034641,5.039e-05,106820.0,106810.0,2.62874]
[1748167040323,5.039e-05,106820.0,106810.0,1.960315]
[1748167040535,5.039e-05,106820.0,106810.0,1.345432]
[1748167041995,5.039e-05,106820.0,106810.0,1.083717]
[1748167042167,5.039e-05,106820.0,106810.0,1.01654]
[1748167042390,0.08959595,106820.0,106810.0,0.99904]
[1748167044879,0.08959595,106820.0,106810.0,1.261665]
[1748167045107,5.039e-05,106820.0,106810.0,1.278565]
[1748167047549,5.039e-05,106820.0,106810.0,1.278605]
[1748167049700,0.08959595,106820.0,106810.0,0.68028]
[1748167049889,0.08959595,106820.0,106810.0,0.99908]
[1748167050154,0.10699595,106820.0,106810.0,0.99908]